bitfinex-derivatives/quotes_ETHF0:USTF0_20251013
["timestamp","ask_amount","ask_price","bid_price","bid_amount"]
[1760317519768,0.00173317,4134.7,4134.6,0.5709]
[1760317520266,3.5096986,4134.7,4134.5,0.00288971]
[1760317520563,0.00173317,4134.7,4134.5,0.00288971]
[1760317520869,0.43495,4134.6,4134.5,0.00288971]
[1760317521062,3.50796543,4134.6,4134.5,0.00288971]
[1760317521756,4.07476543,4134.6,4134.5,0.00288971]
[1760317522262,4.07476543,4134.6,4132.5,1.31894]
[1760317522263,0.5668,4134.2,4133.3,3.2078]
[1760317522461,0.43502,4134.0,4133.5,0.43506]
[1760317522665,6.28657778,4134.1,4133.3,3.2078]
[1760317522969,41.3668,4134.9,4134.1,0.9986]
[1760317523166,0.43497,4134.5,4134.1,0.00221419]
[1760317523461,3.07877778,4134.4,4134.1,1.00082419]
[1760317523767,0.43667317,4134.7,4134.6,0.5636]
[1760317523768,0.00173317,4134.7,4134.6,0.5636]
[1760317525267,0.5668,4134.2,4134.1,0.00221419]
[1760317525458,41.3668,4134.2,4134.1,0.00221419]
[1760317525654,41.3668,4134.2,4133.3,0.5636]
[1760317525655,0.7686,4134.0,4133.3,3.2078]
[1760317525861,0.7686,4134.0,4132.7,3.2078]
[1760317525862,1.00194,4132.8,4132.7,3.2078]
[1760317526160,4.20974388,4132.8,4132.7,3.2078]
[1760317526364,1.002,4132.3,4132.2,3.2078]
[1760317526564,3.20780388,4132.8,4132.3,0.5636]
[1760317526762,0.43507,4133.5,4132.9,0.43512]
[1760317526969,0.5668,4134.1,4133.2,3.2078]
[1760317527165,3.20560418,4133.9,4133.2,3.2078]
[1760317527362,3.20560418,4133.9,4133.3,0.5636]
[1760317527363,3.20560418,4133.7,4133.3,0.5636]
[1760317527669,3.20560418,4133.7,4133.0,0.2264]
[1760317527670,0.43513,4133.0,4132.7,3.2078]
[1760317527872,1.00193,4133.0,4132.7,3.2078]
[1760317528169,3.18587102,4132.9,4132.7,3.2078]
[1760317528371,3.62101102,4132.9,4132.7,3.2078]
[1760317528569,3.62101102,4132.9,4132.2,3.2078]
[1760317528570,0.5668,4132.8,4132.2,3.2078]
[1760317528767,0.5668,4132.8,4130.8,1.08838]
[1760317528768,0.5668,4132.4,4131.7,3.2078]
[1760317529072,3.66232395,4132.4,4131.7,3.2078]
[1760317529266,44.46232395,4132.4,4131.7,3.2078]
[1760317529481,0.43531,4131.3,4131.1,3.2078]
[1760317529660,0.5668,4131.2,4130.6,3.2078]
[1760317529866,0.5668,4131.2,4130.1,4.20682]
[1760317529867,0.5668,4131.1,4130.1,4.20682]
[1760317530061,0.5668,4130.9,4130.1,3.2078]
[1760317530466,0.43539,4130.5,4130.1,3.2078]
[1760317530672,0.43542,4130.3,4129.6,3.7714]
[1760317530974,3.07593616,4130.4,4130.2,3.2078]
[1760317531167,0.56862963,4130.9,4130.2,3.7714]
[1760317531368,3.07593616,4130.5,4130.2,3.2078]
[1760317531572,0.00182963,4130.9,4130.4,0.5636]
[1760317531773,0.5668,4130.8,4130.4,0.5636]
[1760317531976,3.21806103,4130.6,4130.5,0.43539]
[1760317532168,3.21806103,4130.8,4130.2,3.2078]
[1760317532367,0.00182963,4130.9,4130.8,0.5636]
[1760317532672,0.00182963,4130.9,4130.8,0.99895]
[1760317532861,0.00182963,4130.9,4130.7,3.2078]
[1760317532862,3.2078,4132.3,4131.5,0.2264]
[1760317533064,0.43512,4133.0,4132.2,0.5636]
[1760317533271,3.10590516,4132.9,4132.7,0.43514]
[1760317533472,5.12247691,4133.7,4132.0,0.2264]
[1760317533473,1.00184,4133.8,4132.9,0.43513]
[1760317533766,3.15806838,4133.3,4133.1,3.2078]
[1760317534167,3.16032089,4133.3,4133.1,3.21034542]
[1760317534373,1.0019,4133.2,4133.1,3.21034542]
[1760317534672,1.0019,4133.2,4132.4,3.2078]
[1760317534673,0.43517,4132.6,4132.4,3.2078]
[1760317534874,3.14594447,4133.2,4132.9,0.5636]
[1760317535062,3.14594447,4133.2,4133.0,4.20651]
[1760317535269,0.00225251,4133.3,4133.0,4.20651]
[1760317535270,0.00225251,4133.3,4133.2,0.9987]
[1760317536472,0.00225251,4133.3,4133.1,0.5636]
[1760317536677,0.00225251,4133.3,4133.2,0.5636]
[1760317537469,0.43496,4134.5,4133.2,0.5636]
[1760317537773,3.2078,4134.6,4133.0,3.2078]
[1760317537774,3.2078,4134.6,4134.5,0.5636]
[1760317537975,0.43492,4135.0,4134.5,0.5636]
[1760317538279,3.19065549,4134.9,4134.4,3.64277]
[1760317538472,3.19274752,4134.9,4134.5,0.5636]
[1760317538777,3.19274752,4134.9,4134.8,0.43493]
[1760317538778,0.00209203,4134.9,4134.8,0.43493]
[1760317539076,0.00209203,4134.9,4134.8,0.99853]
[1760317541386,0.5668,4136.7,4135.0,1.31367]
[1760317541572,0.5668,4137.3,4136.7,0.43473]
[1760317541776,3.20138535,4136.9,4136.8,0.5636]
[1760317541978,0.43469,4137.2,4136.8,0.5636]
[1760317542276,0.43469,4137.2,4136.6,3.2078]
[1760317542277,0.00300288,4137.2,4136.6,3.2078]
[1760317542581,0.00300288,4137.2,4137.1,3.7714]
[1760317543075,3.2078,4138.7,4137.9,0.9982]
[1760317543279,3.2078,4138.7,4137.0,0.2264]
[1760317543280,3.4278,4139.3,4138.6,0.5636]
[1760317543470,3.2078,4140.2,4139.2,0.5636]
[1760317543675,0.43438,4140.1,4139.3,0.43446]
[1760317543871,3.16557482,4139.8,4139.4,0.2357]
[1760317544179,0.00192527,4139.8,4139.5,0.5544]
[1760317544574,0.00192527,4139.8,4139.4,0.00173155]
[1760317544575,0.43444,4139.5,4139.4,0.00173155]
[1760317544977,4.18090876,4139.5,4139.4,0.00173155]
[1760317546072,4.18090876,4139.5,4137.9,3.7622]
[1760317546073,0.5508,4139.3,4137.9,3.7622]
[1760317546274,3.2078,4139.4,4138.5,3.2078]
[1760317546482,3.2078,4139.4,4137.6,0.2357]
[1760317546483,3.13870911,4139.2,4139.1,0.5544]
[1760317546683,3.13870911,4139.3,4139.1,0.5544]
[1760317546883,0.43444,4139.6,4139.0,3.2078]
[1760317547084,3.57315911,4139.5,4139.0,3.21061173]
[1760317547382,3.15592327,4139.6,4139.1,0.5544]
[1760317547577,3.15592327,4139.6,4139.2,0.5544]
[1760317547773,3.15592327,4139.6,4139.0,3.21061173]
[1760317547774,0.00192527,4139.8,4139.4,0.2357]
[1760317547982,0.00192527,4139.8,4139.7,3.7622]
[1760317548577,0.00192527,4139.8,4139.2,3.2078]
[1760317548780,0.00192527,4139.8,4139.7,3.7622]
[1760317550489,0.43446,4139.4,4139.3,0.5544]
[1760317551990,0.43445,4139.5,4139.2,3.2078]
[1760317552387,0.43445,4139.5,4139.3,0.5463]
[1760317552592,0.43445,4139.5,4139.2,3.2078]
[1760317552883,0.43446,4139.4,4139.3,0.5463]
[1760317554980,1.01018,4139.1,4139.0,0.00281173]
[1760317555189,0.00192527,4139.8,4139.1,0.5463]
[1760317555380,0.00192527,4139.8,4139.7,3.7541]
[1760317556093,0.00192527,4139.8,4139.5,0.2349]
[1760317556094,0.43442,4139.7,4139.6,0.5463]
[1760317557887,0.00192527,4139.8,4139.5,0.66933]
[1760317558193,0.43443,4139.6,4139.5,0.7812]
[1760317558393,0.43633527,4139.8,4139.6,0.5463]
[1760317558591,0.43633527,4139.8,4139.5,0.2349]
[1760317559094,0.00192527,4139.8,4139.7,3.7541]
[1760317560395,3.2078,4141.8,4141.1,0.43427]
[1760317560693,3.2078,4142.4,4142.1,0.5463]
[1760317560884,3.2078,4142.9,4142.6,0.5463]
[1760317561190,0.5757,4143.0,4142.8,3.2078]
[1760317561395,0.00194089,4142.9,4142.6,0.00208357]
[1760317561589,0.43409,4142.8,4142.6,0.00208357]
[1760317561985,3.21032165,4142.7,4142.6,0.00208357]
[1760317563493,6.99382165,4142.7,4142.6,0.00208357]
[1760317563797,0.43422,4141.6,4141.5,3.7541]
[1760317564000,0.43427,4141.1,4141.0,0.7812]
[1760317564397,1.0853,4142.6,4141.1,0.5463]
[1760317564398,3.12326314,4141.6,4141.1,0.5463]
[1760317564593,3.2078,4141.7,4141.5,0.7812]
[1760317564594,3.64201,4141.7,4141.5,0.7812]
[1760317564794,3.64201,4141.7,4141.6,0.5463]
[1760317565098,3.64201,4141.7,4141.5,0.00243544]
[1760317565299,0.5757,4141.6,4141.5,0.00243544]
[1760317565596,1.0854,4142.2,4141.6,0.5463]
[1760317565597,3.2078,4142.2,4141.6,0.5463]
[1760317565791,0.43422,4141.6,4141.5,3.44513544]
[1760317565995,0.43422,4141.6,4141.5,3.99143544]
[1760317566493,0.43417,4142.1,4142.0,0.2349]
[1760317566690,3.2078,4142.8,4142.0,0.7812]
[1760317566691,0.43416,4142.2,4142.0,0.7812]
[1760317566891,0.43416,4142.2,4142.0,0.5463]
[1760317567093,0.43418,4142.0,4141.6,0.5463]
[1760317567286,3.21103135,4142.7,4141.5,3.87936544]
[1760317567287,0.43421,4141.8,4141.5,3.44513544]
[1760317567693,0.43418,4142.0,4141.5,3.44513544]
[1760317567996,0.43421,4141.7,4141.6,0.5463]
[1760317569295,3.2078,4142.3,4141.6,0.5463]
[1760317569496,0.43416,4142.2,4141.6,0.5463]
[1760317569794,3.12629652,4142.2,4141.5,0.23733544]
[1760317569987,4.5254332,4142.9,4142.1,0.5463]
[1760317569988,0.43414,4142.4,4142.1,0.5463]
[1760317570191,0.43413,4142.5,4142.3,0.5463]
[1760317570396,0.00194089,4142.9,4142.6,0.5463]
[1760317570596,0.43603089,4142.9,4142.6,0.5463]
[1760317570790,0.43412,4142.6,4142.2,3.2078]
[1760317570997,0.43414,4142.4,4142.3,0.5463]
[1760317571696,0.43414,4142.4,4142.2,3.2078]
[1760317572200,3.2078,4142.8,4142.5,0.2349]
[1760317573198,3.2078,4142.8,4142.6,0.5463]
[1760317573405,0.00194089,4142.9,4142.6,0.98041]
[1760317573707,0.00194089,4142.9,4142.7,0.5463]
[1760317573902,0.00194089,4142.9,4142.7,0.98039]
[1760317574102,0.00194089,4142.9,4142.7,0.43409]
[1760317574308,0.00194089,4142.9,4142.8,0.5463]
[1760317574515,40.8,4144.3,4143.6,0.5463]
[1760317574516,3.2078,4143.8,4143.6,0.5463]
[1760317574807,3.2078,4144.9,4144.0,0.2349]
[1760317575002,3.2078,4144.9,4144.6,0.5463]
[1760317575302,0.22,4145.3,4144.6,0.5463]
[1760317575511,0.2225079,4145.3,4145.1,0.5463]
[1760317575802,0.85520386,4146.9,4145.3,0.5463]
[1760317576005,3.2078,4147.3,4146.8,0.5463]
[1760317576202,3.2078,4147.3,4147.1,0.5463]
[1760317576397,3.7835,4148.2,4147.2,3.2078]
[1760317576596,0.43359,4147.7,4147.2,3.2078]
[1760317576801,0.00231283,4147.7,4147.3,0.5463]
[1760317577109,0.00231283,4147.7,4147.2,3.2078]
[1760317577110,3.2078,4147.5,4146.8,0.5463]
[1760317577308,0.5757,4146.9,4145.8,0.5463]
[1760317577499,3.2078,4146.3,4145.7,0.5463]
[1760317577808,3.14110083,4146.8,4146.7,0.5463]
[1760317578110,0.43367,4146.9,4146.8,0.5463]
[1760317578601,0.43367,4146.9,4146.6,0.2349]
[1760317578602,0.43374,4146.3,4146.0,3.989]
[1760317578802,0.43374,4146.3,4146.0,3.4427]
[1760317579012,3.2078,4146.8,4146.1,0.5463]
[1760317579203,0.5757,4147.1,4146.0,3.4427]
[1760317579403,3.2078,4146.7,4146.1,0.5463]
[1760317579705,0.43371,4146.5,4146.1,0.5463]
[1760317580105,0.5757,4147.1,4146.0,3.4427]
[1760317580106,0.43373,4146.3,4146.0,3.4427]
[1760317580305,0.43375,4146.1,4146.0,3.989]
[1760317581104,3.2078,4146.8,4146.0,3.4427]
[1760317581410,3.2078,4146.8,4146.1,0.5463]
[1760317581708,0.43374,4146.2,4146.1,0.5549]
[1760317581910,0.43379,4145.7,4145.6,0.5549]
[1760317582110,0.43379,4145.7,4145.5,3.2078]
[1760317582511,0.43385,4145.2,4145.1,0.5549]
[1760317582812,0.43384,4145.3,4145.1,0.5549]
[1760317583111,3.2078,4146.3,4145.1,0.5549]
[1760317583312,3.2078,4146.3,4145.7,3.2078]
[1760317583512,3.18329579,4146.2,4145.8,0.5549]
[1760317584007,0.43377,4145.9,4145.8,0.5549]
[1760317584409,0.43383,4145.3,4145.2,3.7627]
[1760317584708,0.43383,4145.3,4144.7,0.43389]
[1760317584709,0.43389,4144.7,4144.6,0.00247724]
[1760317585007,0.43583342,4144.7,4144.6,0.55737724]
[1760317585403,0.00194342,4144.7,4144.6,3.76517724]
[1760317585709,3.2078,4146.8,4145.6,0.5549]
[1760317585913,3.2078,4146.8,4145.5,0.2298]
[1760317585914,0.43372,4146.4,4146.1,3.2078]
[1760317586209,3.13631542,4146.8,4146.6,0.5549]
[1760317586508,0.43363,4147.3,4147.1,0.5549]
[1760317586807,0.43363,4147.3,4147.0,0.2298]
[1760317586808,0.43365,4147.1,4146.7,3.2078]
[1760317587018,0.00238565,4147.3,4146.8,0.5549]
[1760317587203,0.00238565,4147.3,4147.2,3.9925]
[1760317587399,0.43369,4146.6,4146.5,3.7627]
[1760317587610,3.20043393,4147.2,4146.9,0.5549]
[1760317587909,0.00238565,4147.3,4147.2,0.5549]
[1760317588614,0.00238565,4147.3,4147.2,3.7627]
[1760317588913,0.00238565,4147.3,4147.2,0.7847]
[1760317589413,0.00238565,4147.3,4147.2,0.5549]
[1760317589911,0.00238565,4147.3,4147.2,3.7627]
[1760317590106,0.00238565,4147.3,4147.2,0.5549]
[1760317590305,0.00238565,4147.3,4146.7,3.2078]
[1760317590508,0.43367,4146.8,4146.7,3.2078]
[1760317590710,0.00238565,4147.3,4146.7,3.2078]
[1760317590914,0.00238565,4147.3,4147.2,3.9925]
[1760317591927,0.43353,4148.2,4147.2,3.9925]
[1760317592218,3.2078,4148.7,4148.0,0.5549]
[1760317592219,0.43355,4148.1,4148.0,0.5549]
[1760317592413,0.43355,4148.1,4147.9,3.2078]
[1760317592712,3.2078,4148.2,4147.2,3.4376]
[1760317592907,3.2078,4148.2,4146.6,0.2298]
[1760317592908,0.43367,4146.8,4146.6,3.2078]
[1760317593107,8.29779231,4147.5,4146.7,0.5549]
[1760317593318,3.2078,4148.0,4147.1,3.2078]
[1760317593616,0.43362,4147.4,4147.3,0.5549]
[1760317593816,0.43359,4147.6,4147.3,0.5549]
[1760317594015,0.43361,4147.5,4147.2,0.2298]
[1760317594511,3.15179716,4148.1,4147.3,0.5549]
[1760317594705,4.23566716,4148.1,4147.3,0.5549]
[1760317594907,4.23566716,4148.1,4146.7,0.5549]
[1760317594908,0.43361,4147.5,4146.7,0.5549]
[1760317595111,3.2078,4147.8,4147.3,0.5549]
[1760317595309,0.00260643,4148.2,4147.9,0.5549]
[1760317595513,0.00260643,4148.2,4148.1,0.5549]
[1760317596308,0.43359,4147.6,4147.5,0.7847]
[1760317596613,0.43359,4147.6,4147.2,3.4376]
[1760317596614,0.43367,4146.8,4146.7,0.5549]
[1760317596809,1.00017,4146.8,4146.6,0.00294782]
[1760317597028,0.43378,4145.8,4145.7,3.7627]
[1760317597209,0.43378,4145.8,4145.7,0.5549]
[1760317597410,0.43378,4145.8,4145.2,3.2078]
[1760317597411,0.43383,4145.3,4145.2,3.7627]
[1760317597610,0.43383,4145.3,4145.2,3.2078]
[1760317597812,0.43383,4145.3,4144.5,0.2298]
[1760317597813,0.43394,4144.3,4144.2,0.5549]
[1760317598012,0.43581698,4144.3,4144.2,0.00196102]
[1760317598322,0.43581698,4144.3,4143.5,3.9925]
[1760317598323,0.43397,4144.1,4143.5,3.4376]
[1760317598520,0.00187698,4144.3,4144.2,0.7847]
[1760317598817,0.43395,4144.2,4144.0,3.2078]
[1760317599116,0.434,4143.7,4143.6,0.5549]
[1760317599308,0.434,4143.7,4143.6,0.55706846]
[1760317599507,0.43398,4143.9,4143.6,0.00216846]
[1760317599709,0.43399,4143.8,4143.7,0.5549]
[1760317599909,0.43399,4143.8,4143.6,0.00216846]
[1760317599910,0.5665,4143.7,4143.6,0.00216846]
[1760317600113,3.63353596,4143.8,4143.6,0.00216846]
[1760317600411,0.43399,4143.8,4143.7,0.5549]
[1760317600716,0.43399,4143.8,4143.6,0.00216846]
[1760317600907,0.43411,4142.7,4142.5,0.5549]
[1760317601111,0.43411,4142.6,4142.5,0.5549]
[1760317601717,0.43416,4142.2,4141.9,3.2078]
[1760317601909,0.43418,4142.0,4141.9,3.76558301]
[1760317602519,1.65164,4143.2,4141.9,3.76558301]
[1760317602520,3.2078,4143.4,4142.2,0.5549]
[1760317602719,3.2078,4142.8,4141.9,0.00288301]
[1760317603020,0.43418,4142.0,4141.9,0.55778301]
[1760317603316,3.2078,4142.8,4142.0,0.5549]
[1760317603515,0.43415,4142.3,4142.0,0.5549]
[1760317603718,0.43417,4142.2,4142.0,0.5549]
[1760317604017,0.96908,4142.0,4141.9,0.00288301]
[1760317604415,4.17742994,4142.0,4141.9,0.00288301]
[1760317604722,0.43425,4141.3,4141.2,3.2078]
[1760317604913,0.43425,4141.4,4141.2,3.7307]
[1760317605117,0.43419,4141.9,4141.3,0.5229]
[1760317605318,0.43418,4142.0,4141.4,0.5229]
[1760317605520,3.2078,4142.2,4141.3,3.2078]
[1760317605716,0.5349,4141.7,4141.3,3.20909667]
[1760317605912,0.5349,4141.7,4141.3,0.00129667]
[1760317605913,0.43424,4141.4,4141.3,0.00129667]
[1760317606112,0.96914,4141.4,4141.3,0.00129667]
[1760317606313,4.14099646,4141.4,4141.3,0.00129667]
[1760317606615,0.43435,4140.3,4140.2,3.7307]
[1760317606811,0.43435,4140.3,4140.2,3.2078]
[1760317607020,0.43442,4139.7,4139.6,3.7307]
[1760317607221,0.5349,4140.3,4139.6,3.7307]
[1760317607422,0.4344,4140.0,4139.6,3.7307]
[1760317607720,1.08566,4141.2,4139.6,3.7307]
[1760317607721,0.43432,4140.7,4140.1,0.5229]
[1760317607907,3.2078,4141.0,4140.1,3.7307]
[1760317608108,0.43441,4139.9,4139.6,3.2078]
[1760317608308,1.08576,4140.8,4139.6,3.7307]
[1760317608309,0.43442,4139.8,4139.6,3.7307]
[1760317608515,0.43439,4140.1,4139.7,0.5229]
[1760317608914,3.09759585,4140.4,4140.0,0.2281]
[1760317609112,0.43436,4140.3,4140.1,0.5229]
[1760317609314,0.43436,4140.3,4139.6,3.64223]
[1760317609510,3.2078,4141.0,4140.0,0.751]
[1760317609714,5.05839231,4141.5,4140.1,3.2078]
[1760317609913,0.43435,4140.4,4140.1,3.2078]
[1760317610117,0.43438,4140.1,4139.9,0.5229]
[1760317610418,0.43442,4139.8,4139.5,3.2078]
[1760317610614,0.43443,4139.6,4139.5,3.2078]
[1760317610810,0.43447,4139.3,4139.0,0.5229]
[1760317611012,0.43683351,4139.3,4139.0,0.5229]
[1760317611524,0.00236351,4139.3,4139.1,0.5751]
[1760317612029,0.00236351,4139.3,4138.9,3.2078]
[1760317612030,0.43449,4139.1,4138.9,3.2078]
[1760317612215,0.00236351,4139.3,4139.0,0.5751]
[1760317612422,0.00236351,4139.3,4139.2,1.00957]
[1760317612812,3.2078,4141.1,4140.4,1.00944]
[1760317613019,3.7704,4141.1,4140.4,0.43434]
[1760317613217,3.7704,4141.1,4140.3,0.5751]
[1760317613218,6.38279625,4141.1,4140.3,0.5751]
[1760317613421,6.38279625,4141.1,4140.5,0.43433]
[1760317613624,6.81707625,4141.1,4140.5,0.43433]
[1760317613817,0.00210781,4141.1,4140.6,0.2263]
[1760317614018,0.00210781,4141.1,4141.0,0.5751]
[1760317614317,0.43415,4142.3,4141.0,0.5751]
[1760317614524,3.2078,4142.4,4140.6,0.2263]
[1760317614525,3.7704,4142.4,4141.6,0.5751]
[1760317614816,0.43424,4141.5,4141.0,3.2078]
[1760317615013,0.43424,4141.5,4141.0,3.64208]
[1760317615213,0.43421,4141.7,4141.3,0.5751]
[1760317615418,0.43423,4141.6,4141.2,0.2263]
[1760317615615,0.43423,4141.6,4140.7,0.5751]
[1760317615616,4.24871605,4141.6,4140.7,0.5751]
[1760317615816,1.08594,4140.2,4139.3,3.2078]
[1760317616016,4.52349231,4140.9,4139.8,3.2078]
[1760317616017,3.2078,4140.9,4139.8,3.2078]
[1760317616221,3.2078,4140.9,4140.4,3.2078]
[1760317616427,3.2078,4141.6,4140.7,0.5751]
[1760317616718,1.64803,4142.1,4141.4,0.5751]
[1760317616719,0.43419,4141.9,4141.4,0.5751]
[1760317616928,3.2078,4142.1,4141.3,0.5751]
[1760317617120,0.4343,4140.9,4140.8,0.5751]
[1760317617419,0.4343,4140.9,4140.7,0.0021078]
[1760317617624,0.5626,4140.8,4140.7,0.0021078]
[1760317618120,3.76113384,4140.8,4140.7,0.0021078]
[1760317618819,0.4343,4140.9,4140.7,0.0021078]
[1760317619018,4.2934,4141.5,4140.7,0.0021078]
[1760317619019,3.2078,4141.5,4140.7,0.0021078]
[1760317619216,0.43428,4141.1,4140.7,0.4364178]
[1760317619416,0.43428,4141.1,4140.8,0.5751]
[1760317619611,0.43429,4141.0,4140.8,0.5751]
[1760317619825,0.43426,4141.2,4140.8,0.5751]
[1760317620017,3.2078,4141.5,4140.8,0.5751]
[1760317620018,0.43429,4141.0,4140.8,0.5751]
[1760317620223,0.43429,4141.0,4140.7,0.0021078]
[1760317620426,0.00217864,4141.7,4141.5,0.43422]
[1760317620613,0.00217864,4141.7,4141.6,3.7829]
[1760317620815,3.2078,4142.5,4141.6,3.7829]
[1760317620816,3.7704,4142.5,4141.6,3.2078]
[1760317621024,0.43425,4141.3,4141.1,3.2078]
[1760317621223,0.43425,4141.3,4140.6,0.8014]
[1760317621224,3.10638152,4141.7,4140.6,4.0092]
[1760317621519,3.10638152,4141.7,4138.8,0.2263]
[1760317621520,1.08589,4140.4,4139.8,3.2078]
[1760317621722,0.4345,4138.9,4138.7,3.2078]
[1760317621924,0.43456,4138.3,4138.2,0.5751]
[1760317622219,0.43456,4138.3,4137.1,0.43469]
[1760317622220,0.43461,4137.9,4137.3,3.2078]
[1760317622528,3.08030491,4137.8,4137.4,0.5751]
[1760317622821,0.00189171,4137.9,4137.7,3.2078]
[1760317623025,0.00189171,4137.9,4137.8,0.5751]
[1760317623619,0.99722,4137.8,4137.7,3.2078]
[1760317623825,0.43462,4137.8,4137.7,3.2078]
[1760317624027,3.1435285,4137.8,4137.7,3.7829]
[1760317624329,0.00189171,4137.9,4137.7,3.2078]
[1760317624520,0.43650171,4137.9,4137.7,3.2078]
[1760317624719,0.00189171,4137.9,4137.7,3.2078]
[1760317625223,0.00189171,4137.9,4137.8,0.5751]
[1760317625417,0.00189171,4137.9,4137.7,3.2078]
[1760317625617,0.00189171,4137.9,4137.8,0.5751]
[1760317626124,0.00189171,4137.9,4137.8,1.00972]
[1760317626330,3.2078,4139.4,4137.8,0.5751]
[1760317626628,0.43441,4139.8,4139.0,0.43449]
[1760317626830,3.2078,4140.2,4139.6,0.5751]
[1760317627035,3.15088821,4140.5,4139.7,0.43442]
[1760317627326,3.15088821,4140.2,4139.7,0.43442]
[1760317627623,0.56470732,4140.2,4140.1,3.2078]
[1760317627920,0.56470732,4140.2,4139.4,0.2263]
[1760317627921,0.00210732,4140.2,4139.8,0.5751]
[1760317628125,0.43438,4140.1,4139.8,0.5751]
[1760317628420,3.06777598,4140.0,4139.8,0.5751]
[1760317628621,3.50217598,4140.0,4139.6,3.2078]
[1760317628825,0.5626,4139.7,4139.6,3.2078]
[1760317629026,0.43442,4139.8,4138.4,3.2078]
[1760317629027,0.5626,4139.0,4138.4,3.2078]
[1760317629321,0.43452,4138.7,4138.4,3.2078]
[1760317629529,0.5626,4138.5,4138.4,3.2078]
[1760317629824,3.76881864,4138.5,4138.4,3.2078]
[1760317630622,0.5626,4137.6,4137.3,3.21017909]
[1760317630926,3.17559913,4137.5,4137.3,3.21017909]
[1760317631122,3.61025913,4137.5,4137.3,0.00237909]
[1760317631321,0.5626,4137.4,4137.3,0.00237909]
[1760317631825,0.5626,4137.4,4136.3,0.2263]
[1760317631826,0.5626,4137.3,4135.9,0.5751]
[1760317632124,3.7704,4136.2,4135.2,3.44962335]
[1760317632421,0.5626,4135.3,4135.2,3.44962335]
[1760317632629,0.5626,4135.3,4135.2,0.24182335]
[1760317632821,3.09900029,4135.3,4135.2,0.24483783]
[1760317633023,0.00188179,4135.3,4135.2,1.25482783]
[1760317633217,3.2078,4136.7,4136.0,0.5751]
[1760317633626,6.3049185,4136.7,4136.0,0.5751]
[1760317633818,0.5626,4136.6,4135.7,3.2078]
[1760317634018,6.3049185,4136.7,4135.7,3.2078]
[1760317634019,0.43479,4136.2,4135.7,3.2078]
[1760317634217,0.43479,4136.2,4135.2,0.24483783]
[1760317634218,0.43482,4136.0,4135.2,0.24483783]
[1760317634423,6.84147324,4136.1,4135.2,0.24483783]
[1760317634620,3.07107324,4135.9,4135.2,0.24483783]
[1760317634820,0.43482,4136.0,4135.2,0.24483783]
[1760317635127,0.43483,4135.8,4135.2,0.67972783]
[1760317635326,0.00257627,4136.2,4135.7,3.2078]
[1760317635533,0.00257627,4136.2,4136.1,0.5751]
[1760317635727,3.2078,4137.4,4136.1,0.5751]
[1760317636030,0.5626,4137.6,4136.3,0.43477]
[1760317636031,3.08937506,4136.8,4136.3,0.43477]
[1760317636331,3.2078,4137.5,4136.8,0.43472]
[1760317636623,3.65197506,4137.5,4136.6,3.2078]
[1760317636829,0.5626,4137.3,4136.5,0.43474]
[1760317637128,0.00187082,4137.5,4137.1,0.5751]
[1760317637422,0.00187082,4137.5,4137.4,0.5751]
[1760317638019,0.00187082,4137.5,4135.9,1.08702]
[1760317638020,0.5626,4137.4,4136.2,3.2078]
[1760317638231,3.2078,4137.1,4136.2,3.2078]
[1760317638423,3.17235814,4137.5,4137.2,0.5751]
[1760317638424,3.17048732,4137.3,4137.2,0.5751]
[1760317638618,0.00187082,4137.5,4136.9,3.2078]
[1760317638830,3.64103513,4137.4,4136.9,3.2078]
[1760317639024,0.5626,4137.4,4136.9,3.2078]
[1760317639221,0.00187082,4137.5,4137.4,0.5751]
[1760317639726,0.43468,4137.2,4136.9,3.2078]
[1760317640025,3.64290595,4137.5,4136.4,3.2078]
[1760317640026,3.18973034,4137.1,4136.4,3.2078]
[1760317640230,0.43482,4135.9,4135.7,3.2078]
[1760317640429,0.5626,4136.1,4135.7,3.64264]
[1760317640829,43.93108469,4136.6,4135.8,0.5751]
[1760317641028,40.8,4136.6,4135.8,0.5751]
[1760317641330,3.13108469,4136.1,4135.8,1.00992]
[1760317641526,0.4348,4136.1,4135.8,0.5751]
[1760317642034,0.5324,4136.2,4135.7,3.2078]
[1760317642234,3.2078,4136.4,4136.1,0.43479]
[1760317642527,3.1508296,4136.3,4136.1,0.43479]
[1760317642729,3.2078,4136.4,4135.7,3.2078]
[1760317642730,3.7402,4136.4,4135.7,3.2078]
[1760317642928,0.43479,4136.2,4135.8,0.43482]
[1760317643233,40.8,4137.1,4135.8,1.61597]
[1760317643427,3.2078,4137.3,4136.6,0.5289]
[1760317643625,3.20120582,4137.0,4136.4,3.2078]
[1760317644027,0.43469,4137.2,4136.4,3.2078]
[1760317644431,3.18973094,4137.0,4136.4,3.2078]
[1760317644624,3.62443094,4137.1,4136.4,3.2078]
[1760317644928,0.5324,4136.5,4136.4,3.2078]
[1760317645133,4.19791937,4137.2,4135.5,0.5289]
[1760317645134,0.4348,4136.1,4135.8,3.2078]
[1760317645332,3.2078,4136.8,4135.8,3.2078]
[1760317645333,0.96722,4135.9,4135.8,3.2078]
[1760317645632,3.11120937,4135.9,4135.8,3.2078]
[1760317646026,0.96727,4135.4,4135.3,3.2078]
[1760317646222,0.96727,4135.4,4135.2,0.24483783]
[1760317646427,0.5324,4135.3,4135.2,0.24483783]
[1760317646826,3.61298826,4135.3,4135.2,0.24483783]
[1760317648230,3.08058826,4135.3,4135.2,1.20862783]
[1760317648424,3.2078,4136.0,4135.2,0.77373783]
[1760317648631,0.5324,4135.9,4135.2,0.24483783]
[1760317648830,0.43487,4135.4,4135.2,0.24483783]
[1760317649139,3.65658122,4135.3,4135.2,0.24483783]
[1760317649337,44.45658122,4135.3,4135.2,0.24483783]
[1760317649537,1.0869,4136.5,4135.3,0.5289]
[1760317649538,3.2078,4136.2,4135.3,0.5289]
[1760317649737,0.43481,4136.0,4135.6,0.43484]